bitfinex-derivatives/quotes_BNBF0:USTF0_20241230
["timestamp","ask_amount","ask_price","bid_price","bid_amount"]
[1735593033323,0.25931473,710.09,708.87,1.05456567]
[1735593033528,1.47179587,709.99,708.87,1.05456567]
[1735593033728,0.28165047,710.1,708.87,1.05456567]
[1735593033928,0.25931339,710.09,708.87,1.05456567]
[1735593034823,1.47173881,710.08,708.87,1.05456567]
[1735593035020,0.25931339,710.07,708.87,1.05456567]
[1735593035225,0.25931339,710.07,708.86,1.05456567]
[1735593036323,0.2593187,710.06,708.86,1.05456567]
[1735593036625,0.2593187,710.05,708.89,1.05456567]
[1735593036824,0.2593187,710.04,708.89,1.05456567]
[1735593037023,0.2593187,710.03,708.89,1.05456567]
[1735593037223,0.2593187,710.02,708.89,1.05456567]
[1735593037422,0.2593187,710.01,708.89,1.05456567]
[1735593037725,1.47173881,710.08,708.93,1.05456567]
[1735593037726,0.2593187,710.0,708.93,1.05456567]
[1735593038030,0.2593187,709.99,708.93,1.05456567]
[1735593038232,0.2593187,709.98,708.93,1.05456567]
[1735593038426,0.2593187,709.97,708.93,1.05456567]
[1735593038629,0.2593187,709.96,708.93,1.05456567]
[1735593038827,0.2593187,709.95,708.99,1.05456567]
[1735593039028,0.2593187,709.94,708.99,1.05456567]
[1735593039331,0.2593187,709.93,708.99,1.05456567]
[1735593039528,0.2593187,709.92,708.99,1.05456567]
[1735593039733,0.2593187,709.91,708.99,1.05456567]
[1735593039928,0.2593187,709.9,708.99,1.05456567]
[1735593040133,1.47173881,710.08,708.99,1.05456567]
[1735593040329,0.25929616,710.07,709.05,1.05456567]
[1735593041334,0.25929616,710.07,708.97,1.05456567]
[1735593041535,0.2594596,710.06,708.97,1.05456567]
[1735593041735,0.2594596,710.05,708.97,1.05456567]
[1735593041938,1.47173881,710.08,708.97,1.05456567]
[1735593041939,0.2594596,710.04,708.97,1.05456567]
[1735593042132,0.2594596,710.03,708.97,1.05456567]
[1735593042334,0.2594596,710.02,708.97,1.05456567]
[1735593042530,0.2594596,710.01,708.97,1.05456567]
[1735593042738,1.47173881,710.08,708.32,1.05456567]
[1735593042739,0.25945679,710.0,708.32,1.05456567]
[1735593042936,0.25945679,709.99,708.32,1.05456567]
[1735593043237,0.25945679,709.98,708.32,1.05456567]
[1735593043436,0.25945679,709.97,708.32,1.05456567]
[1735593043638,0.25945679,709.96,708.32,1.05456567]
[1735593043938,0.25944416,709.95,708.28,1.05456567]
[1735593044131,1.47173881,710.08,708.28,1.05456567]
[1735593044132,0.25944416,709.94,708.28,1.05456567]
[1735593044332,0.25944416,709.93,708.28,1.05456567]
[1735593044534,0.25944416,709.92,708.28,1.05456567]
[1735593044733,0.25944416,709.91,708.28,1.05456567]
[1735593044937,0.25944416,709.9,708.28,1.05456567]
[1735593045135,0.25944416,709.9,707.35,2.15307158]
[1735593045136,0.25944416,709.89,708.23,1.05456567]
[1735593046039,0.25944416,709.89,708.2,1.05456567]
[1735593046433,0.25944099,709.88,708.2,1.05456567]
[1735593046637,0.25944099,709.87,708.2,1.05456567]
[1735593046837,0.25944099,709.86,708.2,1.05456567]
[1735593047040,1.4724186,709.9,708.2,1.05456567]
[1735593047234,1.4724186,709.9,707.26,2.15307158]
[1735593047235,0.768,709.86,708.14,1.05456567]
[1735593047439,0.25943633,709.85,708.14,1.05456567]
[1735593048245,0.25943633,709.85,708.15,0.28242603]
[1735593049837,0.25943811,709.84,708.15,0.28242603]
[1735593050041,0.25943811,709.83,708.15,0.28242603]
[1735593050238,0.25943811,709.82,708.15,0.28242603]
[1735593050439,0.25943811,709.81,708.15,0.28242603]
[1735593050741,0.54120762,709.8,708.15,0.28242603]
[1735593051039,0.54121159,709.79,708.15,0.28242603]
[1735593051242,0.28177348,709.79,708.15,0.28242603]
[1735593051444,0.2594397,709.78,708.15,0.28242603]
[1735593051646,0.28178142,709.77,708.15,0.28242603]
[1735593051846,0.25944162,709.76,708.15,0.28242603]
[1735593054346,0.25943108,709.75,708.15,0.28242603]
[1735593054547,0.25943108,709.74,708.19,1.05456567]
[1735593054746,0.25943108,709.73,708.19,1.05456567]
[1735593054943,0.28178142,709.77,708.2,0.28240609]
[1735593055141,0.25942986,709.76,708.2,0.28240609]
[1735593055542,0.25942986,709.76,708.21,1.05456567]
[1735593055543,1.73200941,709.76,708.21,1.05456567]
[1735593055743,0.25942986,709.75,708.22,0.28239812]
[1735593058047,0.28179333,709.74,708.22,0.28239812]
[1735593058247,0.25942986,709.73,708.22,0.28239812]
[1735593058446,0.25942986,709.73,708.23,1.05456567]
[1735593058649,0.25942986,709.73,708.24,0.28239015]
[1735593059445,0.28179333,709.74,708.24,0.28239015]
[1735593059646,0.25943502,709.73,708.24,0.28239015]
[1735593060345,0.28179333,709.74,708.24,0.28239015]
[1735593060946,0.25947269,709.73,708.24,0.28239015]
[1735593061347,0.25951773,709.72,708.24,0.28239015]
[1735593061548,0.25951773,709.71,708.24,0.28239015]
[1735593061743,0.25951773,709.7,708.24,0.28239015]
[1735593061943,0.25951884,709.69,708.24,0.28239015]
[1735593062143,0.25951884,709.68,708.24,0.28239015]
[1735593062349,0.25951884,709.67,708.24,0.28239015]
[1735593062545,0.25951884,709.66,708.24,0.28239015]
[1735593062744,0.28179333,709.74,708.24,0.28239015]
[1735593062745,0.25951884,709.65,708.24,0.28239015]
[1735593062948,0.25951884,709.64,708.24,0.28239015]
[1735593063150,0.25951884,709.63,708.24,0.28239015]
[1735593063345,0.25951884,709.62,708.24,0.28239015]
[1735593063547,0.28184495,709.61,708.24,0.28239015]
[1735593063748,0.25951884,709.6,708.24,0.28239015]
[1735593063945,0.2818529,709.59,708.24,0.28239015]
[1735593064148,0.25951884,709.58,708.24,0.28239015]
[1735593065143,0.28186084,709.57,708.24,0.28239015]
[1735593065345,0.25951884,709.56,708.24,0.28239015]
[1735593065749,1.47305224,709.55,708.24,0.28239015]
[1735593065949,0.25951884,709.54,708.24,0.28239015]
[1735593066653,0.25952039,709.53,708.24,0.28239015]
[1735593066946,0.25952039,709.52,708.24,0.28239015]
[1735593067147,0.25952039,709.51,708.24,0.28239015]
[1735593067351,0.25952039,709.5,708.24,0.28239015]
[1735593067652,1.47305224,709.55,708.24,0.28239015]
[1735593067653,0.25952039,709.49,708.24,0.28239015]
[1735593067851,0.25952039,709.48,708.24,0.28239015]
[1735593068051,0.25952039,709.47,708.24,0.28239015]
[1735593068246,0.25952039,709.46,708.24,0.28239015]
[1735593068452,0.25952039,709.45,708.24,0.28239015]
[1735593068652,0.25952039,709.44,708.24,0.28239015]
[1735593068951,1.47305224,709.55,708.24,0.28239015]
[1735593069346,0.2594829,709.54,708.24,0.28239015]
[1735593070050,0.25948025,709.53,708.24,0.28239015]
[1735593070247,1.47305224,709.55,708.24,0.28239015]
[1735593070551,0.25947986,709.54,708.24,0.28239015]
[1735593071348,1.47305224,709.55,708.24,0.28239015]
[1735593072152,0.2594775,709.54,708.24,0.28239015]
[1735593074451,0.25952737,709.53,708.24,0.28239015]
[1735593074654,0.25952737,709.52,708.24,0.28239015]
[1735593074853,0.25952737,709.51,708.24,0.28239015]
[1735593075055,0.25952737,709.5,708.24,0.28239015]
[1735593075255,0.25952737,709.49,708.24,0.28239015]
[1735593075551,0.25952737,709.48,708.24,0.28239015]
[1735593075759,0.25952737,709.47,708.24,0.28239015]
[1735593075957,0.28186084,709.57,708.24,0.28239015]
[1735593075958,0.25952737,709.46,708.24,0.28239015]
[1735593076158,0.25952737,709.45,708.24,1.33695582]
[1735593076352,0.93952737,709.45,708.24,1.33695582]
[1735593076561,0.25952737,709.44,708.24,1.33695582]
[1735593076957,0.68,709.45,708.24,1.33695582]
[1735593077160,0.25950266,709.44,708.24,1.33695582]
[1735593077356,0.25950266,709.44,708.24,0.28239015]
[1735593077758,0.25951074,709.43,708.24,0.28239015]
[1735593077962,0.25951074,709.42,708.24,0.28239015]
[1735593078159,0.25951074,709.41,708.24,0.28239015]
[1735593078365,0.25951074,709.4,708.24,0.28239015]
[1735593078561,0.25951074,709.39,708.24,0.28239015]
[1735593078766,0.68,709.45,708.24,0.28239015]
[1735593078966,0.25951022,709.44,708.24,0.28239015]
[1735593079761,0.25952495,709.43,708.24,0.28239015]
[1735593080063,0.25952495,709.42,708.24,0.28239015]
[1735593080266,0.25952495,709.41,708.24,0.28239015]
[1735593080465,0.25952495,709.4,708.24,0.28239015]
[1735593080661,0.25952495,709.39,708.24,0.28239015]
[1735593080870,0.25952495,709.38,708.24,0.28239015]
[1735593081065,0.25952495,709.37,708.24,0.28239015]
[1735593081262,0.25952495,709.36,708.24,0.28239015]
[1735593081469,0.25952495,709.35,708.24,0.28239015]
[1735593081669,0.68,709.45,708.24,0.28239015]
[1735593081670,0.25952495,709.34,708.24,0.28239015]
[1735593081869,0.25952495,709.33,708.24,0.28239015]
[1735593082069,0.25952495,709.32,708.24,0.28239015]
[1735593082270,0.68,709.45,708.24,0.28239015]
[1735593082565,0.25952602,709.44,708.26,1.05456567]
[1735593084070,0.25952602,709.44,708.24,0.28239015]
[1735593085371,0.25952602,709.44,708.25,1.05456567]
[1735593085670,0.25953429,709.43,708.25,1.05456567]
[1735593085872,0.25953429,709.42,708.25,1.05456567]
[1735593086071,0.25953429,709.41,708.25,1.05456567]
[1735593086370,0.25953429,709.4,708.25,1.05456567]
[1735593086571,0.25953429,709.39,708.25,1.05456567]
[1735593086773,0.25953429,709.38,708.24,0.28239015]
[1735593086970,0.25953429,709.37,708.24,0.28239015]
[1735593087162,1.47315617,709.37,708.24,0.28239015]
[1735593087367,0.25953429,709.36,708.24,0.28239015]
[1735593087564,0.25956735,709.36,708.24,0.28239015]
[1735593090672,1.25356735,709.36,708.24,0.28239015]
[1735593090873,0.25956735,709.35,708.24,0.28239015]
[1735593093276,0.25953653,709.34,708.24,0.28239015]
[1735593093472,0.25953653,709.33,708.24,0.28239015]
[1735593093677,0.25953653,709.32,708.24,0.28239015]
[1735593093976,0.25953653,709.31,708.24,0.28239015]
[1735593094176,0.25953653,709.3,708.24,0.28239015]
[1735593094376,0.994,709.36,708.24,0.28239015]
[1735593094377,0.25953653,709.29,708.24,0.28239015]
[1735593094573,0.25953653,709.28,708.24,0.28239015]
[1735593094777,0.25953653,709.27,708.24,0.28239015]
[1735593094976,0.994,709.36,708.24,0.28239015]
[1735593095172,0.2595401,709.35,708.24,0.28239015]
[1735593095974,0.2595401,709.35,708.26,1.05456567]
[1735593096378,0.994,709.36,708.26,1.05456567]
[1735593096981,0.994,709.36,708.32,1.05456567]
[1735593097681,0.25951844,709.35,708.32,1.05456567]
[1735593097881,0.25951844,709.35,708.33,1.05456567]
[1735593098075,0.994,709.36,708.33,1.05456567]
[1735593098381,0.25952365,709.35,708.33,1.05456567]
[1735593098873,0.994,709.36,708.33,1.05456567]
[1735593099078,0.994,709.36,708.28,1.05456567]
[1735593101377,0.994,709.36,708.45,1.05456567]
[1735593102781,0.994,709.36,708.46,1.05456567]
[1735593104078,0.994,709.36,708.45,1.05456567]
[1735593104680,0.994,709.36,708.44,1.05456567]
[1735593105686,0.994,709.36,708.46,1.05456567]
[1735593106688,0.994,709.36,708.25,1.05456567]
[1735593106689,0.994,709.36,708.45,1.05456567]
[1735593108089,0.994,709.36,708.46,1.05456567]
[1735593109084,0.994,709.36,708.4,1.05456567]
[1735593110589,0.994,709.36,708.38,1.05456567]
[1735593111791,0.994,709.36,708.37,1.05456567]
[1735593113091,0.994,709.36,708.36,1.05456567]
[1735593114093,0.994,709.36,708.35,1.05456567]
[1735593115490,0.994,709.36,708.32,1.05456567]
[1735593116389,0.994,709.36,708.24,0.28239015]
[1735593116390,0.994,709.36,708.29,1.05456567]
[1735593116592,0.994,709.36,708.33,0.28235426]
[1735593125203,0.994,709.36,708.33,1.33691993]
[1735593126196,0.994,709.36,708.34,1.05456567]
[1735593126500,0.994,709.36,708.35,0.28234629]
[1735593127500,0.994,709.36,708.37,1.05456567]
[1735593127799,0.994,709.36,708.38,0.28233434]
[1735593128199,0.994,709.36,708.39,1.05456567]
[1735593128400,0.994,709.36,708.4,0.28232636]
[1735593128898,0.994,709.36,708.42,1.05456567]
[1735593130001,0.994,709.36,708.43,1.05456567]
[1735593130395,0.994,709.36,708.44,0.28231042]
[1735593131102,0.994,709.36,708.59,1.05456567]
[1735593132006,0.994,709.36,708.58,1.05456567]
[1735593133205,0.994,709.36,708.44,0.28231042]
[1735593133206,0.994,709.36,708.63,1.05456567]
[1735593133904,0.994,709.36,708.54,1.05456567]
[1735593135008,0.994,709.36,708.56,1.05456567]
[1735593136105,0.994,709.36,708.58,1.05456567]
[1735593137304,0.994,709.36,708.44,0.28231042]
[1735593137305,0.994,709.36,708.59,1.05456567]
[1735593139609,0.994,709.36,708.54,1.05456567]
[1735593141709,0.994,709.36,708.56,1.05456567]
[1735593144112,0.994,709.36,708.61,1.05456567]
[1735593145112,0.994,709.36,708.62,1.05456567]
[1735593146114,0.994,709.36,708.7,1.05456567]
[1735593147112,0.994,709.36,708.74,1.05456567]
[1735593148418,0.994,709.36,708.8,1.05456567]
[1735593149020,0.994,709.36,708.76,1.05456567]
[1735593150319,0.994,709.36,708.72,1.05456567]
[1735593151121,0.994,709.36,708.69,1.05456567]
[1735593152518,0.994,709.36,708.7,1.05456567]
[1735593153820,0.994,709.36,708.44,1.33687609]
[1735593153821,0.994,709.36,708.64,1.05456567]
[1735593154521,0.994,709.36,708.65,1.05456567]
[1735593155322,0.994,709.36,708.66,1.05456567]
[1735593156420,0.994,709.36,708.59,1.05456567]
[1735593158624,0.994,709.36,708.63,1.05456567]
[1735593159928,0.994,709.36,708.44,0.28231042]
[1735593159929,0.994,709.36,708.68,1.05456567]
[1735593161028,0.994,709.36,708.67,1.05456567]
[1735593161923,0.994,709.36,708.65,1.05456567]
[1735593163227,0.994,709.36,708.44,0.28231042]
[1735593163228,0.994,709.36,708.77,1.05456567]
[1735593164330,0.994,709.36,708.45,0.75757407]
[1735593164331,0.994,709.36,708.72,1.05456567]
[1735593167325,0.994,709.36,708.83,1.05456567]
[1735593168833,0.994,709.36,708.84,1.05456567]
[1735593170035,0.994,709.36,708.88,1.05456567]
[1735593170934,0.994,709.36,708.79,1.05456567]
[1735593172031,0.994,709.36,708.78,1.05456567]
[1735593173630,0.994,709.36,708.53,1.05456567]
[1735593173631,0.994,709.36,708.79,1.05456567]
[1735593174833,0.994,709.36,708.78,1.05456567]
[1735593176132,0.994,709.36,708.82,1.05456567]
[1735593177036,0.994,709.36,708.83,1.05456567]
[1735593177831,0.994,709.36,708.82,1.05456567]
[1735593179239,0.994,709.36,708.8,1.05456567]
[1735593180038,0.994,709.36,708.81,1.05456567]
[1735593182138,0.994,709.36,708.82,1.05456567]
[1735593184136,0.994,709.36,708.81,1.05456567]
[1735593186240,0.994,709.36,708.8,1.05456567]
[1735593188444,0.994,709.36,708.81,1.05456567]
[1735593190644,0.994,709.36,708.84,1.05456567]
[1735593191846,0.994,709.36,708.82,1.05456567]
[1735593193248,0.994,709.36,708.81,1.05456567]
[1735593194148,0.994,709.36,708.82,1.05456567]
[1735593196446,0.994,709.36,708.8,1.05456567]
[1735593197652,0.994,709.36,708.82,1.05456567]
[1735593198748,0.994,709.36,708.83,1.05456567]
[1735593199843,0.994,709.36,708.84,1.05456567]
[1735593200851,0.994,709.36,708.86,1.05456567]
[1735593201749,0.994,709.36,708.95,1.05456567]
[1735593202954,0.994,709.36,708.54,0.75720713]
[1735593202955,0.994,709.36,708.98,1.05456567]
[1735593206652,0.994,709.36,709.0,1.05456567]
[1735593208056,0.994,709.36,708.99,1.05456567]
[1735593208850,0.994,709.36,708.56,0.75720713]
[1735593208851,0.994,709.36,709.0,1.05456567]
[1735593209559,0.994,709.36,708.56,0.75720713]
[1735593209560,0.994,709.36,708.99,1.05456567]
[1735593212158,0.994,709.36,709.0,1.05456567]
[1735593214057,0.994,709.36,708.99,1.05456567]
[1735593215159,0.994,709.36,709.01,1.05456567]
[1735593216358,0.994,709.36,708.58,0.75720713]
[1735593216359,0.994,709.36,709.07,1.05456567]
[1735593217863,0.994,709.36,708.99,1.05456567]
[1735593218965,0.994,709.36,709.01,1.05456567]
[1735593219866,0.994,709.36,709.0,1.05456567]
[1735593222271,0.994,709.36,708.82,1.05456567]
[1735593223472,0.994,709.36,708.86,1.05456567]
[1735593224673,0.994,709.36,708.88,1.05456567]
[1735593225569,0.994,709.36,708.87,1.05456567]
[1735593226571,0.994,709.36,708.92,1.05456567]
[1735593227471,0.994,709.36,708.88,1.05456567]
[1735593228275,0.994,709.36,708.97,1.05456567]
[1735593231074,0.994,709.36,708.96,1.05456567]
[1735593232478,0.994,709.36,708.99,1.05456567]
[1735593233178,0.994,709.36,709.01,1.05456567]
[1735593234380,0.994,709.36,709.11,1.05456567]
[1735593235375,0.994,709.36,709.09,1.05456567]
[1735593236278,0.994,709.36,709.11,1.05456567]
[1735593237879,0.994,709.36,708.6,0.7566052]
[1735593237880,0.994,709.36,709.07,1.05456567]
[1735593238984,0.994,709.36,709.04,1.05456567]
[1735593240479,0.994,709.36,708.6,0.7566052]
[1735593240480,0.994,709.36,709.02,1.05456567]
[1735593241883,0.994,709.36,709.0,1.05456567]
[1735593244385,0.994,709.36,708.99,1.05456567]
[1735593245589,0.994,709.36,709.01,1.05456567]
[1735593247690,0.994,709.36,709.05,1.05456567]
[1735593248990,0.994,709.36,709.02,1.05456567]
[1735593251985,0.994,709.36,708.97,1.05456567]
[1735593252788,0.994,709.36,708.98,1.05456567]
[1735593253989,0.994,709.36,708.99,1.05456567]
[1735593255793,0.994,709.36,709.0,1.05456567]
[1735593257097,0.994,709.36,709.01,1.05456567]
[1735593258698,0.994,709.36,709.02,1.05456567]
[1735593259499,0.994,709.36,709.04,1.05456567]
[1735593260399,0.994,709.36,709.05,1.05456567]
[1735593261400,0.994,709.36,709.07,1.05456567]
[1735593262394,0.994,709.36,708.6,0.7566052]
[1735593262395,0.994,709.36,709.1,1.05456567]
[1735593264001,0.994,709.36,708.87,1.05456567]
[1735593264002,0.994,709.36,709.12,1.05456567]
[1735593265199,0.994,709.36,709.0,1.05456567]
[1735593266503,0.994,709.36,708.73,1.05456567]
[1735593266504,0.994,709.36,708.99,1.05456567]
[1735593267505,0.994,709.36,709.04,1.05456567]
[1735593268598,0.994,709.36,708.6,0.7566052]
[1735593268599,0.994,709.36,708.98,1.05456567]
[1735593272101,0.994,709.36,708.97,1.05456567]
[1735593273208,0.994,709.36,708.98,1.05456567]
[1735593274306,0.994,709.36,708.96,1.05456567]
[1735593275013,0.994,709.36,708.93,1.05456567]
[1735593276012,0.994,709.36,708.94,1.05456567]
[1735593278115,0.994,709.36,709.02,1.05456567]
[1735593278814,0.994,709.36,708.94,1.05456567]
[1735593279713,0.994,709.36,708.93,1.05456567]
[1735593280914,0.994,709.36,708.62,0.7566052]
[1735593280915,0.994,709.36,708.92,1.05456567]
[1735593281912,0.994,709.36,708.69,1.05456567]
[1735593281913,0.994,709.36,708.87,1.05456567]
[1735593282713,0.994,709.36,708.86,1.05456567]
[1735593284017,0.994,709.36,708.84,1.05456567]
[1735593284810,0.994,709.36,708.85,1.05456567]
[1735593285818,0.994,709.36,708.86,1.05456567]
[1735593288218,0.994,709.36,708.88,1.05456567]
[1735593289321,0.994,709.36,708.87,1.05456567]
[1735593290622,0.994,709.36,708.84,1.05456567]
[1735593291525,0.994,709.36,708.89,1.05456567]
[1735593292627,0.994,709.36,708.86,1.05456567]
[1735593293819,0.994,709.36,708.9,1.05456567]
[1735593295128,0.994,709.36,708.62,0.28223871]
[1735593295129,0.994,709.36,708.91,1.05456567]
[1735593295929,0.994,709.36,708.93,1.05456567]
[1735593297028,0.994,709.36,708.94,1.05456567]
[1735593297928,0.994,709.36,708.97,1.05456567]
[1735593299330,0.994,709.36,708.63,0.75653583]
[1735593299331,0.994,709.36,709.0,1.05456567]
[1735593300333,0.994,709.36,708.64,0.28223075]
[1735593300334,0.994,709.36,708.94,1.05456567]
[1735593301930,0.994,709.36,708.89,1.05456567]
[1735593302829,0.994,709.36,708.84,1.05456567]
[1735593303932,0.994,709.36,708.75,1.05456567]
[1735593305238,0.994,709.36,708.64,1.33679642]
[1735593306338,0.994,709.36,708.64,0.28223075]
[1735593310640,0.994,709.36,708.83,1.05456567]
[1735593312146,0.994,709.36,708.85,1.05456567]
[1735593313245,0.994,709.36,708.64,0.28223075]
[1735593313246,0.994,709.36,708.86,1.05456567]
[1735593314248,0.994,709.36,708.79,1.05456567]
[1735593315047,0.994,709.36,708.81,1.05456567]
[1735593315950,0.994,709.36,708.64,0.28223075]
[1735593315951,0.994,709.36,708.75,1.05456567]
[1735593316749,0.994,709.36,708.76,1.05456567]
[1735593317649,0.994,709.36,708.75,1.05456567]
[1735593318652,0.994,709.36,708.77,1.05456567]
[1735593319650,0.994,709.36,708.64,0.28223075]
[1735593319651,0.994,709.36,708.82,1.05456567]
[1735593320650,0.994,709.36,708.79,1.05456567]
[1735593323048,0.994,709.36,708.81,1.05456567]
[1735593323954,0.994,709.36,708.68,1.05456567]
[1735593326145,0.994,709.36,708.69,0.28221083]
[1735593326355,0.994,709.36,708.73,1.05456567]
[1735593328054,0.994,709.36,708.74,1.05456567]
[1735593329155,0.994,709.36,708.75,1.05456567]
[1735593330353,0.994,709.36,708.8,1.05456567]
[1735593331348,0.994,709.36,708.81,1.05456567]
[1735593332352,0.994,709.36,708.78,1.05456567]
[1735593335360,0.994,709.36,708.79,1.05456567]
[1735593337563,0.994,709.36,708.84,1.05456567]
[1735593338358,0.994,709.36,708.83,1.05456567]
[1735593339466,0.994,709.36,708.86,1.05456567]
[1735593340565,0.994,709.36,708.98,1.05456567]
[1735593341765,0.994,709.36,709.0,1.05456567]
[1735593342961,0.994,709.36,708.7,1.81112438]
[1735593342962,0.994,709.36,709.04,1.05456567]
[1735593343863,0.994,709.36,709.05,1.05456567]
[1735593345068,0.994,709.36,709.06,1.05456567]
[1735593345969,0.994,709.36,709.07,1.05456567]
[1735593347166,0.994,709.36,709.1,1.05456567]
[1735593349273,0.994,709.36,708.98,1.05456567]
[1735593352681,0.994,709.36,708.93,1.05456567]
[1735593354783,0.994,709.36,708.97,1.05456567]
[1735593355683,0.994,709.36,709.04,1.05456567]
[1735593355877,0.91350276,709.36,709.04,1.05456567]
[1735593356083,0.49350276,709.36,709.04,1.05456567]
[1735593356681,0.49350276,709.36,708.7,0.75736905]
[1735593356682,0.49350276,709.36,709.16,1.05456567]
[1735593356881,1.47182699,710.0,709.16,1.05456567]
[1735593357681,1.47182699,710.0,709.11,1.05456567]
[1735593358683,1.47182699,710.0,709.09,1.05456567]
[1735593359482,0.2592861,709.99,709.09,1.05456567]
[1735593359879,0.2592861,709.99,708.98,1.05456567]
[1735593360683,1.0402861,709.99,708.98,1.05456567]
[1735593360883,0.2592861,709.98,708.98,1.05456567]
[1735593361185,0.2592861,709.98,708.99,1.05456567]
[1735593362682,0.2592861,709.98,708.97,1.05456567]
[1735593362978,0.781,709.99,708.97,1.05456567]
[1735593363184,0.25929495,709.98,708.97,1.05456567]
[1735593363883,0.25929495,709.98,708.96,1.05456567]
[1735593364786,0.25929495,709.98,708.97,1.05456567]
[1735593365587,0.781,709.99,708.97,1.05456567]
[1735593365793,0.2592803,709.98,708.96,1.05456567]
[1735593366292,0.781,709.99,708.96,1.05456567]
[1735593366611,0.25927949,709.98,709.0,1.05456567]
[1735593366902,0.2592789,709.97,709.0,1.05456567]
[1735593367088,0.781,709.99,709.0,1.05456567]
[1735593367592,0.25927464,709.98,709.01,1.05456567]
[1735593367989,0.25927772,709.97,709.01,1.05456567]
[1735593368190,0.781,709.99,709.01,1.05456567]
[1735593368594,0.25927683,709.98,709.01,1.05456567]
[1735593370096,0.25927683,709.98,709.1,1.05456567]
[1735593370891,0.25926443,709.97,709.1,1.05456567]
[1735593371092,0.25926443,709.96,709.1,1.05456567]
[1735593371295,0.25926443,709.95,709.1,1.05456567]
[1735593371492,0.25926443,709.94,709.1,1.05456567]
[1735593371798,0.25926443,709.93,709.1,1.05456567]
[1735593371994,0.25926443,709.93,708.7,0.75697931]
[1735593371995,0.25926443,709.92,709.14,1.05456567]
[1735593372294,0.25926443,709.91,709.14,1.05456567]
[1735593372598,0.25926443,709.9,709.14,1.05456567]
[1735593372999,0.25926443,709.9,709.13,1.05456567]
[1735593373402,0.25927236,709.89,709.13,1.05456567]
[1735593373596,0.25927236,709.88,709.13,1.05456567]
[1735593373800,1.47155211,709.91,709.13,1.05456567]
[1735593374100,1.47155211,709.91,709.12,1.05456567]
[1735593375000,1.47155211,709.91,709.03,1.05456567]
[1735593375899,1.47155211,709.91,708.7,0.75697931]
[1735593375900,1.47155211,709.91,709.04,1.05456567]
[1735593376705,1.47155211,709.91,709.05,1.05456567]
[1735593377804,1.47155211,709.91,709.04,1.05456567]
[1735593378807,1.47155211,709.91,708.9,1.05456567]
[1735593380106,1.47155211,709.91,708.85,1.05456567]
[1735593380901,2.30155211,709.91,708.85,1.05456567]
[1735593383509,2.30155211,709.91,708.76,1.05456567]
[1735593385111,0.25932881,709.9,708.76,1.05456567]
[1735593385610,0.25932881,709.9,708.82,1.05456567]
[1735593387113,0.25932881,709.9,708.81,1.05456567]
[1735593387508,0.25932667,709.89,708.81,1.05456567]
[1735593387712,2.30155211,709.91,708.81,1.05456567]
[1735593388012,2.30155211,709.91,708.8,1.05456567]
[1735593388313,0.25932785,709.9,708.8,1.05456567]
[1735593388509,2.30155211,709.91,708.8,1.05456567]
[1735593389107,2.30155211,709.91,708.77,1.05456567]
[1735593389505,0.25932651,709.9,708.77,1.05456567]
[1735593390414,2.30155211,709.91,708.75,1.05456567]
[1735593390610,0.25933071,709.9,708.75,1.05456567]
[1735593391212,0.25933071,709.9,708.77,1.05456567]
[1735593391907,2.30155211,709.91,708.77,1.05456567]
[1735593392608,2.30155211,709.91,708.8,1.05456567]
[1735593394014,2.30155211,709.91,708.69,0.28221083]
[1735593394015,2.30155211,709.91,708.71,1.05456567]
[1735593395515,2.30155211,709.91,708.72,1.05456567]
[1735593396512,2.30155211,709.91,708.73,1.05456567]
[1735593397111,0.83,709.91,708.73,1.05456567]
[1735593397516,0.83,709.91,708.72,1.05456567]
[1735593398416,0.83,709.91,708.75,1.05456567]
[1735593399317,0.83,709.91,708.76,1.05456567]
[1735593400615,0.83,709.91,708.75,1.05456567]
[1735593401520,1.47192037,709.9,708.75,1.05456567]
[1735593401719,1.47192037,709.9,708.76,1.05456567]
[1735593402019,0.25931761,709.89,708.76,1.05456567]
[1735593402812,0.98831761,709.89,708.86,1.05456567]
[1735593403013,0.25931761,709.88,708.86,1.05456567]
[1735593403820,0.25931761,709.88,708.87,1.05456567]
[1735593405328,0.25931272,709.87,708.87,1.05456567]
[1735593405623,0.25931272,709.86,708.87,1.05456567]
[1735593405822,0.729,709.89,708.87,1.05456567]
[1735593406023,0.25931143,709.88,708.91,1.05456567]